fUSD/lending_fUSD_20251217
["ID","MTS","AMOUNT","RATE_DAILY","PERIOD"]
[398932966,1766005841111,-500.0,0.00013698,2]
[398932968,1766005841122,-500.0,0.00013698,2]
[398932969,1766005841131,-500.0,0.00013698,2]
[398932970,1766005841140,-500.0,0.00013698,2]
[398932971,1766005841149,-1000.0,0.00013698,2]
[398932972,1766005841158,-1000.0,0.00013698,2]
[398932973,1766005841167,-1000.0,0.00013698,2]
[398932974,1766005841177,-1000.0,0.00013698,2]
[398932975,1766005841186,-1000.0,0.00013698,2]
[398932976,1766005841195,-1000.0,0.00013698,2]
[398932978,1766005841205,-1000.0,0.00013698,2]
[398932980,1766005841219,-1000.0,0.00013698,2]
[398932982,1766005841228,-1000.0,0.00013698,2]
[398932984,1766005841238,-1000.0,0.00013698,2]
[398932986,1766005841247,-725.73772161,0.00013698,2]
[398932988,1766005841258,-166.66,0.00013699,2]
[398932990,1766005841267,-500.0,0.00013699,2]
[398932993,1766005841278,-500.0,0.00013699,2]
[398932995,1766005841287,-253.91295482,0.00013699,2]
[398932997,1766005841296,-500.0,0.00013699,2]
[398932999,1766005841307,-500.0,0.00013699,2]
[398933001,1766005841317,-500.0,0.00013699,2]
[398933003,1766005841327,-500.0,0.00013699,2]
[398933005,1766005841337,-500.0,0.00013699,2]
[398933007,1766005841346,-500.0,0.00013699,2]
[398933009,1766005841355,-500.0,0.00013699,2]
[398933011,1766005841365,-500.0,0.00013699,2]
[398933013,1766005841379,-500.0,0.00013699,2]
[398933015,1766005841388,-500.0,0.00013699,2]
[398933017,1766005841398,-500.0,0.00013699,2]
[398933019,1766005841408,-638.0538828,0.00013699,2]
[398933022,1766005841422,-500.0,0.00013699,2]
[398933024,1766005841432,-500.0,0.00013699,2]
[398933026,1766005841442,-500.0,0.00013699,2]
[398933028,1766005841452,-500.0,0.00013699,2]
[398933030,1766005841462,-500.0,0.00013699,2]
[398933032,1766005841471,-500.0,0.00013699,2]
[398933034,1766005841480,-500.0,0.00013699,2]
[398933036,1766005841490,-500.0,0.00013699,2]
[398933038,1766005841500,-500.0,0.00013699,2]
[398933040,1766005841510,-500.0,0.00013699,2]
[398933042,1766005841519,-500.0,0.00013699,2]
[398933044,1766005841528,-500.0,0.00013699,2]
[398933046,1766005841537,-500.0,0.00013699,2]
[398933049,1766005841547,-500.0,0.00013699,2]
[398933051,1766005841557,-500.0,0.00013699,2]
[398933053,1766005841566,-500.0,0.00013699,2]
[398933055,1766005841575,-500.0,0.00013699,2]
[398933057,1766005841585,-500.0,0.00013699,2]
[398933058,1766005841595,-500.0,0.00013699,2]
[398933060,1766005841605,-300.0,0.00013875,2]
[398933062,1766005841614,-300.0,0.00013875,2]
[398933064,1766005841626,-300.0,0.00013875,2]
[398933066,1766005841635,-300.0,0.00013875,2]
[398933068,1766005841645,-300.0,0.00013875,2]
[398933070,1766005841655,-250.0,0.00013875,2]
[398933072,1766005841665,-195.0,0.00013875,2]
[398933074,1766005841674,-300.0,0.00013875,2]
[398933075,1766005841684,-300.0,0.00013875,2]
[398933076,1766005841694,-300.0,0.00013875,2]
[398933077,1766005841703,-193.0,0.00013875,2]
[398933078,1766005841713,-887.863358,0.00013915,2]
[398933079,1766005841723,-500.0,0.00013921,2]
[398933080,1766005841733,-500.0,0.00013921,2]
[398933081,1766005841742,-498.60294116,0.00013921,2]
[398933082,1766005841752,-1000.0,0.00013921,2]
[398933083,1766005841762,-1000.0,0.00013921,2]
[398933084,1766005841771,-446.79619718,0.00013921,2]
[398933085,1766005841781,-649.79191981,0.00013921,2]
[398933086,1766005841790,-1447.42116383,0.00013926,2]
[398933087,1766005841800,-166.66,0.00013927,2]
[398933088,1766005841813,-500.0,0.00013939,2]
[398933089,1766005841822,-200.0,0.00013939,2]
[398933090,1766005841833,-200.0,0.00013939,2]
[398933091,1766005841844,-1620.49,0.00013939,2]
[398933092,1766005841854,-179.69,0.00013957,2]
[398933093,1766005841865,-366.42,0.00013957,2]
[398933094,1766005841874,-367.0,0.00013964,2]
[398933095,1766005841883,-373.0,0.00013992,2]
[398933096,1766005841894,-255.0,0.00014009,2]
[398933097,1766005841904,-19623.67049748,0.00014021,2]
[398933098,1766005841913,-420.0,0.00014053,2]
[398933099,1766005841924,-420.0,0.00014053,2]
[398933100,1766005841934,-1406.0,0.0001408,2]
[398933101,1766005841943,-247.0,0.0001408,2]
[398933102,1766005841952,-1680.0,0.00014093,2]
[398933103,1766005841962,-1002.0,0.00014108,2]
[398933104,1766005841971,-166.66,0.00014155,2]
[398933105,1766005841980,-480.0,0.00014159,2]
[398933106,1766005841990,-1600.0,0.0001419,2]
[398933107,1766005842002,-500.0,0.00014195,2]
[398933108,1766005842011,-1620.49,0.00014213,2]
[398933109,1766005842021,-166.66,0.00014383,2]
[398933110,1766005842031,-887.863358,0.000144,2]
[398933111,1766005842040,-1447.42116383,0.00014421,2]
[398933112,1766005842049,-19623.67049748,0.00014433,2]
[398933113,1766005842059,-1500.0,0.00014468,2]
[398933114,1766005842068,-500.0,0.00014468,2]
[398933115,1766005842078,-266.8433042,0.00014468,2]
[398933116,1766005842087,-500.0,0.00014487,2]
[398933117,1766005842097,-200.0,0.00014487,2]
[398933118,1766005842106,-200.0,0.00014487,2]
[398933119,1766005842115,-1620.49,0.00014487,2]
[398933120,1766005842125,-500.0,0.00014492,2]
[398933121,1766005842136,-500.0,0.00014492,2]
[398933122,1766005842145,-500.0,0.00014492,2]
[398933123,1766005842155,-1000.0,0.00014593,2]
[398933124,1766005842165,-166.66,0.00014612,2]
[398933125,1766005842175,-500.0,0.00014656,2]
[398933126,1766005842185,-500.0,0.00014656,2]
[398933127,1766005842195,-500.0,0.00014742,2]
[398933128,1766005842205,-1620.49,0.00014761,2]
[398933129,1766005842215,-166.66,0.0001484,2]
[398933130,1766005842225,-19623.67049748,0.00014844,2]
[398933131,1766005842235,-1852.42,0.00014844,2]
[398933132,1766005842244,-150.53901239,0.000149,2]
[398933133,1766005842254,-150.53901239,0.000149,2]
[398933134,1766005842264,-150.53901239,0.000149,2]
[398933135,1766005842274,-1447.42116383,0.00014917,2]
[398933136,1766005842284,-500.0,0.00014986,2]
[398933137,1766005842302,-1250.73714884,0.00015016,2]
[398933139,1766005842311,-500.0,0.00015016,2]
[398933142,1766005842322,-500.0,0.00015035,2]
[398933144,1766005842331,-200.0,0.00015035,2]
[398933146,1766005842341,-200.0,0.00015035,2]
[398933148,1766005842350,-1620.49,0.00015035,2]
[398933150,1766005842361,-433.0,0.00015197,2]
[398933152,1766005842372,-19623.67049748,0.00015255,2]
[398933153,1766005842391,-150.0,0.00015288,2]
[398933154,1766005842402,-150.0,0.00015288,2]
[398933155,1766005842412,-150.0,0.00015288,2]
[398933157,1766005842423,-150.00000001,0.00015288,2]
[398933158,1766005842434,-150.0,0.00015288,2]
[398933159,1766005842454,-150.0,0.00015288,2]
[398933160,1766005842468,-150.0,0.00015288,2]
[398933161,1766005842480,-150.0,0.00015288,2]
[398933162,1766005842490,-150.0,0.00015288,2]
[398933163,1766005842500,-150.0,0.00015288,2]
[398933164,1766005842510,-150.0,0.00015288,2]
[398933165,1766005842520,-150.0,0.00015288,2]
[398933166,1766005842530,-150.0,0.00015288,2]
[398933167,1766005842539,-150.0,0.00015288,2]
[398933168,1766005842548,-150.0,0.00015288,2]
[398933169,1766005842558,-457.04108268,0.0001529,2]
[398933170,1766005842567,-150.0,0.00015308,2]
[398933171,1766005842577,-1620.49,0.00015309,2]
[398933172,1766005842586,-150.0,0.00015314,2]
[398933173,1766005842595,-150.0,0.00015317,2]
[398933174,1766005842605,-150.0,0.00015325,2]
[398933175,1766005842614,-150.0,0.00015325,2]
[398933176,1766005842623,-150.0,0.00015327,2]
[398933177,1766005842633,-150.0,0.00015329,2]
[398933178,1766005842642,-150.0,0.00015336,2]
[398933179,1766005842652,-150.0,0.0001534,2]
[398933180,1766005842661,-150.0,0.00015346,2]
[398933181,1766005842671,-150.0,0.0001535,2]
[398933182,1766005842680,-150.0,0.00015362,2]
[398933183,1766005842689,-150.0,0.00015363,2]
[398933184,1766005842699,-150.0,0.00015366,2]
[398933185,1766005842708,-150.0,0.00015367,2]
[398933186,1766005842717,-369.97006638,0.00015368,2]
[398933187,1766005842727,-150.0,0.00015371,2]
[398933188,1766005842736,-150.0,0.00015373,2]
[398933189,1766005842745,-150.0,0.00015376,2]
[398933190,1766005842755,-150.0,0.00015385,2]
[398933191,1766005842764,-150.0,0.00015391,2]
[398933192,1766005842777,-150.0,0.00015392,2]
[398933193,1766005842787,-150.0,0.00015398,2]
[398933195,1766005842797,-150.0,0.00015401,2]
[398933197,1766005842807,-150.0,0.00015405,2]
[398933199,1766005842817,-150.0,0.00015406,2]
[398933200,1766005842827,-150.0,0.00015409,2]
[398933201,1766005842837,-150.0,0.00015412,2]
[398933202,1766005842847,-1447.42116383,0.00015413,2]
[398933203,1766005842857,-587.0,0.00015414,2]
[398933204,1766005842867,-587.0,0.00015414,2]
[398933205,1766005842877,-150.0,0.00015418,2]
[398933206,1766005842887,-150.0,0.00015418,2]
[398933207,1766005842896,-150.0,0.00015429,2]
[398933209,1766005842906,-150.0,0.00015433,2]
[398933211,1766005842916,-150.0,0.00015433,2]
[398933235,1766005843403,-150.0,0.00015434,2]
[398933236,1766005843415,-150.0,0.00015435,2]
[398933237,1766005843426,-150.0,0.00015439,2]
[398933238,1766005843437,-150.0,0.00015444,2]
[398933239,1766005843446,-150.0,0.00015446,2]
[398933240,1766005843461,-150.0,0.00015453,2]
[398933241,1766005843472,-150.0,0.00015458,2]
[398933242,1766005843483,-150.0,0.00015463,2]
[398933243,1766005843492,-1826.8994,0.00015468,2]
[398933244,1766005843502,-22233.6833,0.00015468,2]
[398933245,1766005843513,-1000.0,0.00015468,2]
[398933246,1766005843522,-302.01604807,0.00015468,2]
[398933247,1766005843531,-150.0,0.00015471,2]
[398933248,1766005843542,-150.0,0.00015472,2]
[398933249,1766005843551,-500.0,0.00015473,2]
[398933250,1766005843560,-500.0,0.00015473,2]
[398933251,1766005843570,-500.0,0.00015473,2]
[398933252,1766005843579,-500.0,0.00015473,2]
[398933253,1766005843588,-500.0,0.00015473,2]
[398933254,1766005843598,-500.0,0.00015473,2]
[398933255,1766005843608,-270.30071685,0.00015473,2]
[398933256,1766005843617,-530.10800238,0.00015473,2]
[398933257,1766005843627,-500.0,0.00015473,2]
[398933258,1766005843637,-500.0,0.00015473,2]
[398933259,1766005843647,-500.0,0.00015473,2]
[398933260,1766005843656,-500.0,0.00015473,2]
[398933261,1766005843666,-500.0,0.00015473,2]
[398933262,1766005843677,-500.0,0.00015473,2]
[398933263,1766005843688,-500.0,0.00015473,2]
[398933264,1766005843698,-500.0,0.00015473,2]
[398933265,1766005843709,-500.0,0.00015473,2]
[398933266,1766005843719,-150.0,0.00015474,2]
[398933267,1766005843729,-150.0,0.00015476,2]
[398933268,1766005843739,-150.0,0.00015482,2]
[398933269,1766005843748,-150.0,0.00015485,2]
[398933270,1766005843758,-150.0,0.00015493,2]
[398933271,1766005843770,-150.0,0.00015495,2]
[398933272,1766005843779,-150.0,0.00015497,2]
[398933273,1766005843789,-2351.0,0.00015502,2]
[398933274,1766005843799,-150.0,0.00015509,2]
[398933275,1766005843808,-150.0,0.00015514,2]
[398933276,1766005843818,-150.0,0.00015516,2]
[398933277,1766005843828,-150.0,0.00015522,2]
[398933278,1766005843838,-150.0,0.00015523,2]
[398933279,1766005843848,-150.0,0.00015525,2]
[398933280,1766005843858,-150.0,0.0001553,2]
[398933281,1766005843868,-150.0,0.0001553,2]
[398933282,1766005843877,-2198.0,0.00015534,2]
[398933283,1766005843887,-150.0,0.00015536,2]
[398933284,1766005843897,-150.0,0.00015542,2]
[398933285,1766005843909,-150.0,0.00015546,2]
[398933286,1766005843919,-150.0,0.00015549,2]
[398933287,1766005843929,-150.0,0.00015549,2]
[398933288,1766005843939,-150.0,0.00015551,2]
[398933289,1766005843948,-150.0,0.00015552,2]
[398933290,1766005843958,-150.0,0.00015557,2]
[398933291,1766005843968,-150.0,0.00015564,2]
[398933292,1766005843978,-151.0,0.00015565,2]
[398933293,1766005843988,-500.0,0.00015567,2]
[398933294,1766005843997,-500.0,0.00015567,2]
[398933295,1766005844007,-500.0,0.00015567,2]
[398933296,1766005844016,-500.0,0.00015567,2]
[398933297,1766005844025,-500.0,0.00015567,2]
[398933298,1766005844035,-500.0,0.00015567,2]
[398933299,1766005844044,-500.0,0.00015567,2]
[398933300,1766005844055,-500.0,0.00015567,2]
[398933301,1766005844064,-500.0,0.00015567,2]
[398933302,1766005844074,-500.0,0.00015567,2]
[398933303,1766005844083,-500.0,0.00015567,2]
[398933304,1766005844093,-500.0,0.00015567,2]
[398933305,1766005844103,-500.0,0.00015567,2]
[398933306,1766005844112,-500.0,0.00015567,2]
[398933307,1766005844122,-500.0,0.00015567,2]
[398933308,1766005844132,-500.0,0.00015567,2]
[398933309,1766005844141,-500.0,0.00015567,2]
[398933310,1766005844151,-500.0,0.00015567,2]
[398933311,1766005844160,-500.0,0.00015567,2]
[398933312,1766005844170,-500.0,0.00015567,2]
[398933313,1766005844180,-500.0,0.00015567,2]
[398933314,1766005844189,-500.0,0.00015567,2]
[398933315,1766005844200,-500.0,0.00015567,2]
[398933316,1766005844210,-500.0,0.00015567,2]
[398933317,1766005844219,-500.0,0.00015567,2]
[398933318,1766005844229,-500.0,0.00015567,2]
[398933319,1766005844240,-357.14795574,0.00015567,2]
[398933320,1766005844249,-500.0,0.00015567,2]
[398933321,1766005844259,-500.0,0.00015567,2]
[398933322,1766005844270,-500.0,0.00015567,2]
[398933323,1766005844279,-500.0,0.00015567,2]
[398933324,1766005844289,-512122.6968303,0.00015568,2]
[398933325,1766005844299,-5153.777065,0.00015568,2]
[398933326,1766005844309,-11585.772573,0.00015568,2]
[398933327,1766005844318,-4613.9537146,0.00015568,2]
[398933328,1766005844328,-150.0,0.00015571,2]
[398933329,1766005844338,-150.0,0.00015571,2]
[398933330,1766005844348,-150.0,0.00015575,2]
[398933331,1766005844358,-150.0,0.00015578,2]
[398933332,1766005844367,-150.0,0.00015579,2]
[398933333,1766005844380,-693.08117626,0.00015579,2]
[398933334,1766005844390,-5679.68819907,0.00015579,2]
[398933335,1766005844399,-150.0,0.00015581,2]
[398933336,1766005844409,-500.0,0.00015583,2]
[398933337,1766005844418,-200.0,0.00015583,2]
[398933338,1766005844428,-1620.49,0.00015583,2]
[398933339,1766005844437,-150.0,0.00015583,2]
[398933340,1766005844450,-150.0,0.0001559,2]
[398933341,1766005844461,-150.0,0.00015598,2]
[398933342,1766005844472,-150.0,0.00015601,2]
[398933343,1766005844483,-698.29122795,0.00015602,2]
[398933344,1766005844493,-150.0,0.00015604,2]
[398933345,1766005844503,-150.0,0.0001561,2]
[398933346,1766005844513,-150.0,0.00015619,2]
[398933347,1766005844522,-150.0,0.0001562,2]
[398933348,1766005844532,-150.0,0.00015627,2]
[398933349,1766005844542,-150.0,0.00015627,2]
[398933350,1766005844554,-150.0,0.00015627,2]
[398933351,1766005844564,-150.0,0.00015627,2]
[398933352,1766005844574,-150.0,0.00015639,2]
[398933353,1766005844583,-150.0,0.0001564,2]
[398933354,1766005844593,-150.0,0.00015643,2]
[398933355,1766005844603,-150.0,0.00015652,2]
[398933356,1766005844613,-150.0,0.00015654,2]
[398933357,1766005844623,-150.0,0.00015657,2]
[398933358,1766005844633,-150.0,0.00015661,2]
[398933359,1766005844642,-150.0,0.00015665,2]
[398933360,1766005844652,-19623.67049748,0.00015666,2]
[398933361,1766005844662,-150.0,0.00015668,2]
[398933362,1766005844671,-150.0,0.00015676,2]
[398933363,1766005844681,-150.0,0.0001568,2]
[398933364,1766005844690,-150.0,0.0001568,2]
[398933365,1766005844701,-150.0,0.00015681,2]
[398933366,1766005844711,-150.0,0.00015683,2]
[398933367,1766005844722,-150.0,0.00015694,2]
[398933368,1766005844732,-150.0,0.00015698,2]
[398933369,1766005844743,-150.0,0.00015702,2]
[398933370,1766005844755,-150.0,0.00015703,2]
[398933371,1766005844764,-150.0,0.00015706,2]
[398933372,1766005844774,-150.0,0.00015712,2]
[398933373,1766005844784,-150.0,0.00015712,2]
[398933374,1766005844794,-369.97006635,0.00015712,2]
[398933375,1766005844807,-150.0,0.00015722,2]
[398933376,1766005844817,-150.0,0.00015723,2]
[398933377,1766005844827,-150.0,0.00015724,2]
[398933378,1766005844836,-150.0,0.00015727,2]
[398933379,1766005844846,-500.0,0.0001573,2]
[398933380,1766005844855,-500.0,0.0001573,2]
[398933381,1766005844864,-150.0,0.00015731,2]
[398933382,1766005844874,-150.0,0.00015732,2]
[398933383,1766005844883,-150.0,0.00015741,2]
[398933384,1766005844892,-150.0,0.00015743,2]
[398933385,1766005844902,-150.0,0.00015756,2]
[398933386,1766005844912,-150.0,0.00015758,2]
[398933387,1766005844922,-150.0,0.00015762,2]
[398933388,1766005844931,-150.0,0.00015764,2]
[398933389,1766005844941,-1600.0,0.00015767,2]
[398933390,1766005844950,-150.0,0.00015768,2]
[398933391,1766005844960,-150.0,0.00015773,2]
[398933392,1766005844969,-150.0,0.00015773,2]
[398933393,1766005844979,-150.0,0.00015778,2]
[398933394,1766005844988,-150.0,0.00015784,2]
[398933395,1766005844997,-150.0,0.00015785,2]
[398933396,1766005845007,-150.0,0.00015786,2]
[398933397,1766005845017,-150.0,0.00015797,2]
[398933398,1766005845026,-150.0,0.00015801,2]
[398933399,1766005845036,-150.0,0.00015805,2]
[398933400,1766005845045,-150.0,0.00015806,2]
[398933401,1766005845055,-150.0,0.0001581,2]
[398933402,1766005845064,-150.0,0.0001581,2]
[398933403,1766005845074,-150.0,0.00015815,2]
[398933404,1766005845083,-150.0,0.00015816,2]
[398933405,1766005845093,-150.0,0.00015822,2]
[398933406,1766005845102,-150.0,0.00015826,2]
[398933407,1766005845112,-150.0,0.00015836,2]
[398933408,1766005845121,-150.0,0.00015841,2]
[398933409,1766005845131,-150.0,0.00015842,2]
[398933410,1766005845140,-150.0,0.00015844,2]
[398933411,1766005845150,-150.0,0.00015847,2]
[398933412,1766005845160,-150.0,0.00015854,2]
[398933413,1766005845170,-150.0,0.00015854,2]
[398933414,1766005845180,-150.0,0.00015854,2]
[398933415,1766005845190,-150.0,0.00015854,2]
[398933416,1766005845200,-1620.49,0.00015857,2]
[398933417,1766005845210,-698.29122791,0.00015862,2]
[398933418,1766005845219,-150.0,0.00015863,2]
[398933419,1766005845229,-150.0,0.00015868,2]
[398933420,1766005845239,-150.0,0.0001587,2]
[398933421,1766005845248,-150.0,0.00015873,2]
[398933422,1766005845258,-150.0,0.00015878,2]
[398933423,1766005845268,-150.0,0.0001588,2]
[398933425,1766005845278,-150.0,0.00015882,2]
[398933426,1766005845288,-150.0,0.00015888,2]
[398933427,1766005845298,-150.0,0.00015889,2]
[398933428,1766005845308,-721.0,0.0001589,2]
[398933429,1766005845317,-721.0,0.0001589,2]
[398933430,1766005845326,-721.0,0.0001589,2]
[398933431,1766005845336,-150.0,0.00015892,2]
[398933432,1766005845345,-150.0,0.00015894,2]
[398933433,1766005845355,-150.0,0.00015903,2]
[398933434,1766005845364,-1447.42116383,0.00015909,2]
[398933435,1766005845376,-150.0,0.00015909,2]
[398933436,1766005845386,-150.0,0.00015915,2]
[398933437,1766005845396,-150.0,0.00015915,2]
[398933438,1766005845406,-150.0,0.00015919,2]
[398933439,1766005845416,-150.0,0.0001592,2]
[398933440,1766005845426,-150.0,0.00015929,2]
[398933441,1766005845436,-150.0,0.0001593,2]
[398933442,1766005845447,-150.0,0.00015932,2]
[398933443,1766005845457,-150.0,0.00015941,2]
[398933444,1766005845466,-150.0,0.00015941,2]
[398933445,1766005845475,-150.0,0.00015951,2]
[398933446,1766005845486,-150.0,0.00015952,2]
[398933447,1766005845495,-150.0,0.00015959,2]
[398933448,1766005845505,-150.0,0.00015961,2]
[398933449,1766005845514,-150.0,0.00015967,2]
[398933450,1766005845524,-150.0,0.00015967,2]
[398933451,1766005845534,-150.0,0.00015967,2]
[398933452,1766005845544,-150.0,0.00015967,2]
[398933453,1766005845554,-150.0,0.00015971,2]
[398933454,1766005845564,-150.0,0.00015989,2]
[398933455,1766005845574,-150.0,0.00015991,2]
[398933456,1766005845584,-150.0,0.00015992,2]
[398933457,1766005845594,-150.0,0.00015993,2]
[398933458,1766005845603,-150.0,0.00015995,2]
[398933459,1766005845613,-150.0,0.00015999,2]
[398933460,1766005845622,-150.0,0.00016005,2]
[398933461,1766005845631,-150.0,0.00016013,2]
[398933462,1766005845641,-150.0,0.00016016,2]
[398933463,1766005845651,-150.0,0.00016016,2]
[398933464,1766005845660,-150.0,0.00016019,2]
[398933465,1766005845670,-150.0,0.0001602,2]
[398933466,1766005845679,-1000.0,0.00016021,2]
[398933467,1766005845689,-1000.0,0.00016021,2]
[398933468,1766005845698,-669.93256308,0.00016021,2]
[398933469,1766005845708,-1000.0,0.00016021,2]
[398933470,1766005845717,-1000.0,0.00016021,2]
[398933471,1766005845727,-1000.0,0.00016021,2]
[398933472,1766005845737,-1000.0,0.00016021,2]
[398933473,1766005845746,-1000.0,0.00016021,2]
[398933474,1766005845756,-1000.0,0.00016021,2]
[398933475,1766005845765,-1000.0,0.00016021,2]
[398933476,1766005845909,-1000.0,0.00016021,2]
[398933477,1766005845919,-1000.0,0.00016021,2]
[398933478,1766005845931,-1000.0,0.00016021,2]
[398933480,1766005845941,-1000.0,0.00016021,2]
[398933482,1766005845950,-1000.0,0.00016021,2]
[398933484,1766005845959,-150.0,0.00016026,2]
[398933486,1766005845969,-150.0,0.00016033,2]
[398933488,1766005845978,-150.0,0.00016038,2]
[398933490,1766005845988,-150.0,0.00016043,2]
[398933492,1766005845997,-150.0,0.00016046,2]
[398933494,1766005846007,-150.0,0.00016049,2]
[398933496,1766005846016,-150.0,0.00016052,2]
[398933498,1766005846026,-150.0,0.00016054,2]
[398933500,1766005846035,-369.97006635,0.00016057,2]
[398933502,1766005846045,-150.0,0.00016063,2]
[398933504,1766005846054,-150.0,0.00016064,2]
[398933506,1766005846063,-150.0,0.00016072,2]
[398933508,1766005846072,-150.0,0.00016072,2]
[398933509,1766005846081,-150.0,0.00016075,2]
[398933511,1766005846090,-19623.67049748,0.00016078,2]
[398933513,1766005846100,-150.0,0.00016078,2]
[398933515,1766005846109,-150.0,0.00016078,2]
[398933517,1766005846119,-150.0,0.0001608,2]
[398933520,1766005846128,-150.0,0.00016096,2]
[398933522,1766005846138,-150.0,0.00016098,2]
[398933524,1766005846147,-150.0,0.000161,2]
[398933526,1766005846157,-150.0,0.00016108,2]
[398933528,1766005846166,-150.0,0.00016113,2]
[398933530,1766005846176,-9999.99,0.00016116,2]
[398933532,1766005846185,-1232.86,0.00016116,2]
[398933534,1766005846194,-150.0,0.00016116,2]
[398933535,1766005846203,-150.0,0.00016117,2]
[398933537,1766005846213,-150.0,0.00016118,2]
[398933539,1766005846222,-698.29122791,0.00016121,2]
[398933541,1766005846231,-150.0,0.00016124,2]
[398933543,1766005846240,-207.4,0.0001613,2]
[398933545,1766005846249,-500.0,0.00016131,2]
[398933547,1766005846259,-200.0,0.00016131,2]
[398933549,1766005846269,-1620.49,0.00016131,2]
[398933551,1766005846278,-150.0,0.00016137,2]
[398933553,1766005846287,-150.0,0.00016137,2]
[398933555,1766005846297,-150.0,0.00016137,2]
[398933557,1766005846306,-150.0,0.00016137,2]
[398933559,1766005846315,-150.0,0.00016137,2]
[398933561,1766005846324,-150.0,0.00016137,2]
[398933563,1766005846335,-150.0,0.00016137,2]
[398933565,1766005846344,-150.0,0.00016137,2]
[398933567,1766005846353,-366.42,0.00016145,2]
[398933569,1766005846363,-150.0,0.0001615,2]
[398933571,1766005846376,-150.0,0.00016156,2]
[398933573,1766005846385,-150.0,0.00016157,2]
[398933575,1766005846394,-150.0,0.00016158,2]
[398933577,1766005846403,-150.0,0.00016161,2]
[398933579,1766005846414,-150.0,0.00016166,2]
[398933581,1766005846423,-150.0,0.00016174,2]
[398933583,1766005846433,-150.0,0.00016176,2]
[398933585,1766005846444,-150.0,0.00016178,2]
[398933587,1766005846455,-302.01604806,0.00016184,2]
[398933590,1766005846472,-150.0,0.00016194,2]
[398933591,1766005846492,-150.0,0.00016196,2]
[398933593,1766005846501,-150.0,0.00016196,2]
[398933596,1766005846510,-150.0,0.00016199,2]
[398933598,1766005846519,-150.0,0.00016202,2]
[398933600,1766005846528,-150.0,0.00016202,2]
[398933601,1766005846537,-150.0,0.0001621,2]
[398933604,1766005846547,-150.0,0.00016211,2]
[398933606,1766005846556,-1000.0,0.00016215,2]
[398933608,1766005846566,-150.0,0.0001622,2]
[398933610,1766005846575,-200.0,0.0001622,2]
[398933612,1766005846584,-150.0,0.00016222,2]
[398933614,1766005846593,-150.0,0.00016225,2]
[398933616,1766005846602,-150.0,0.00016228,2]
[398933617,1766005846611,-150.0,0.00016231,2]
[398933620,1766005846621,-150.0,0.00016236,2]
[398933622,1766005846630,-150.0,0.00016241,2]
[398933624,1766005846639,-150.0,0.00016248,2]
[398933626,1766005846648,-250.0,0.00016253,2]
[398933628,1766005846657,-150.0,0.00016254,2]
[398933630,1766005846666,-150.0,0.00016255,2]